fUSD/lending_fUSD_20250812
["ID","MTS","AMOUNT","RATE_DAILY","PERIOD"]
[378826128,1755037877470,-751.95,0.00050136,120]
[378826129,1755037877479,-400.0,0.00050136,120]
[378826130,1755037877489,-400.0,0.00050136,120]
[378826131,1755037877498,-906.0,0.00050136,120]
[378826132,1755037877507,-457.29,0.00050136,120]
[378826133,1755037877517,-497.34,0.00050136,120]
[378826134,1755037877526,-400.0,0.00050136,120]
[378826135,1755037877536,-400.0,0.00050136,120]
[378826136,1755037877545,-400.0,0.00050136,120]
[378826137,1755037877554,-975.12,0.00050136,120]
[378826138,1755037877563,-430.14,0.00050136,120]
[378826139,1755037877572,-400.0,0.00050136,120]
[378826140,1755037877582,-416.97,0.00050136,120]
[378826141,1755037877591,-434.23,0.00050136,120]
[378826142,1755037877601,-400.0,0.00050136,120]
[378826143,1755037877610,-487.57,0.00050136,120]
[378826144,1755037877620,-400.0,0.00050136,120]
[378826145,1755037877629,-1329.15,0.00050136,120]
[378826146,1755037877639,-1027.81,0.00050136,120]
[378826147,1755037877649,-925.98,0.00050136,120]
[378826148,1755037877659,-400.0,0.00050136,120]
[378826149,1755037877669,-404.91,0.00050136,120]
[378826150,1755037877680,-1315.52,0.00050136,120]
[378826151,1755037877691,-400.0,0.00050136,120]
[378826152,1755037877703,-400.0,0.00050136,120]
[378826153,1755037877712,-400.0,0.00050136,120]
[378826154,1755037877722,-930.76,0.00050136,120]
[378826155,1755037877731,-455.38,0.00050136,120]
[378826156,1755037877741,-476.03,0.00050136,120]
[378826157,1755037877750,-400.0,0.00050136,120]
[378826158,1755037877760,-400.0,0.00050136,120]
[378826159,1755037877771,-426.16,0.00050136,120]
[378826160,1755037877782,-400.0,0.00050136,120]
[378826161,1755037877791,-400.0,0.00050136,120]
[378826162,1755037877800,-479.97,0.00050136,120]
[378826163,1755037877809,-704.89,0.00050136,120]
[378826164,1755037877819,-435.9,0.00050136,120]
[378826165,1755037877828,-400.0,0.00050136,120]
[378826166,1755037877837,-416.23,0.00050136,120]
[378826167,1755037877846,-400.0,0.00050136,120]
[378826168,1755037877856,-400.0,0.00050136,120]
[378826169,1755037877866,-913.74,0.00050136,120]
[378826170,1755037877875,-400.0,0.00050136,120]
[378826171,1755037877885,-400.0,0.00050136,120]
[378826172,1755037877894,-400.0,0.00050136,120]
[378826173,1755037877904,-637.4,0.00050136,120]
[378826174,1755037877913,-665.22,0.00050136,120]
[378826175,1755037877923,-589.88,0.00050136,120]
[378826176,1755037877932,-400.0,0.00050136,120]
[378826177,1755037877942,-400.0,0.00050136,120]
[378826178,1755037877951,-400.0,0.00050136,120]
[378826179,1755037877961,-400.0,0.00050136,120]
[378826180,1755037877970,-447.06,0.00050136,120]
[378826181,1755037877980,-400.0,0.00050136,120]
[378826182,1755037877989,-400.0,0.00050136,120]
[378826183,1755037877999,-400.0,0.00050136,120]
[378826184,1755037878008,-400.0,0.00050136,120]
[378826185,1755037878017,-400.0,0.00050136,120]
[378826186,1755037878027,-812.17,0.00050136,120]
[378826187,1755037878036,-5.82484069,0.00050136,120]
[378826188,1755037878061,-876.84515931,0.00050136,120]
[378826189,1755037878070,-713.01,0.00050136,120]
[378826190,1755037878080,-484.16,0.00050136,120]
[378826191,1755037878089,-400.0,0.00050136,120]
[378826192,1755037878098,-400.0,0.00050136,120]
[378826193,1755037878107,-746.51,0.00050136,120]
[378826194,1755037878116,-603.05956104,0.00050136,120]
[378826195,1755037878562,-500.0,0.00041083,120]
[378826196,1755037878571,-161.1367839,0.00041083,120]
[378826197,1755037878583,-338.8632161,0.00041083,120]
[378826198,1755037878592,-13.86478032,0.00041083,120]
[378826199,1755037878830,-486.13521968,0.00041083,120]
[378826200,1755037878839,-401.86478032,0.00041083,120]
[378826201,1755037878850,-98.13521968,0.00041083,120]
[378826202,1755037878860,-500.0,0.00041083,120]
[378826203,1755037878871,-144.25713424,0.00041083,120]
[378826204,1755037879309,-355.74286576,0.00041083,120]
[378826205,1755037879318,-500.0,0.00041083,120]
[378826206,1755037879327,-500.0,0.00041083,120]
[378826207,1755037879337,-214.3,0.00041083,120]
[378826208,1755037879346,-1066.04442661,0.00047236,50]
[378826209,1755037879355,-985.87119291,0.00047236,50]
[378826210,1755037879364,-1888.0,0.00049314,120]
[378826211,1755037879373,-1888.0,0.00049314,120]
[378826212,1755037879382,-1888.0,0.00049314,120]
[378826213,1755037879391,-301.91519071,0.00049315,2]
[378826214,1755037879400,-519.96,0.00049315,120]
[378826215,1755037879410,-400.0,0.00049315,120]
[378826216,1755037879418,-400.0,0.00049315,120]
[378826217,1755037879428,-400.0,0.00049315,120]
[378826218,1755037879437,-151.0,0.00049315,30]
[378826219,1755037879447,-400.0,0.00049315,120]
[378826220,1755037879456,-259.63783514,0.00049315,120]
[378826221,1755037879467,-400.0,0.00049315,2]
[378826222,1755037879476,-400.0,0.00049315,120]
[378826223,1755037879486,-400.0,0.00049315,120]
[378826224,1755037879496,-400.0,0.00049315,120]
[378826225,1755037879506,-400.0,0.00049315,120]
[378826226,1755037879515,-400.0,0.00049315,120]
[378826227,1755037879525,-400.0,0.00049315,120]
[378826228,1755037879534,-400.0,0.00049315,120]
[378826229,1755037879544,-400.0,0.00049315,120]
[378826230,1755037879553,-460.0,0.00049315,120]
[378826231,1755037879563,-400.0,0.00049589,120]
[378826232,1755037879572,-472.56,0.00049589,120]
[378826233,1755037879582,-1888.0,0.00049815,120]
[378826234,1755037879592,-325.63,0.00049863,120]
[378826235,1755037879601,-43.88043896,0.00050136,120]
[378826236,1755037879610,-400.0,0.00050136,120]
[378826237,1755037879620,-400.0,0.00050136,120]
[378826238,1755037879629,-400.0,0.00050136,120]
[378826239,1755037879638,-400.0,0.00050136,120]
[378826240,1755037879648,-752.03,0.00050136,120]
[378826241,1755037879658,-487.39,0.00050136,120]
[378826242,1755037879668,-762.0,0.00050136,120]
[378826243,1755037879677,-400.0,0.00050136,120]
[378826244,1755037879687,-400.0,0.00050136,120]
[378826245,1755037879701,-254.577229,0.00050136,120]
[378826246,1755037879710,-400.0,0.00050136,120]
[378826247,1755037879719,-400.0,0.00050136,120]
[378826248,1755037879729,-400.0,0.00050136,120]
[378826249,1755037879738,-151.0,0.00050136,120]
[378826250,1755037879748,-400.0,0.00050136,120]
[378826251,1755037879757,-400.0,0.00050136,120]
[378826252,1755037879767,-553.27,0.00050136,120]
[378826253,1755037879777,-449.88,0.00050136,120]
[378826254,1755037879786,-400.0,0.00050136,120]
[378826255,1755037879997,-400.0,0.00050136,120]
[378826256,1755037880007,-851.34,0.00050136,120]
[378826257,1755037880017,-971.94,0.00050136,120]
[378826258,1755037880027,-151.51792,0.00050136,120]
[378826259,1755037880036,-1384.37,0.00050136,120]
[378826260,1755037880045,-400.0,0.00050136,120]
[378826261,1755037880055,-400.0,0.00050136,120]
[378826262,1755037880064,-510.8,0.00050136,120]
[378826263,1755037880074,-400.0,0.00050136,120]
[378826264,1755037880083,-400.0,0.00050136,120]
[378826265,1755037880093,-400.0,0.00050136,120]
[378826266,1755037880102,-400.0,0.00050136,120]
[378826267,1755037880111,-825.77,0.00050136,120]
[378826268,1755037880121,-400.0,0.00050136,120]
[378826269,1755037880130,-1418.26,0.00050136,120]
[378826270,1755037880139,-400.0,0.00050136,120]
[378826271,1755037880149,-400.0,0.00050136,120]
[378826272,1755037880158,-400.0,0.00050136,120]
[378826273,1755037880168,-400.0,0.00050136,120]
[378826274,1755037880177,-400.0,0.00050136,120]
[378826275,1755037880187,-1069.76,0.00050136,120]
[378826276,1755037880196,-1391.57,0.00050136,120]
[378826277,1755037880206,-581.28,0.00050136,120]
[378826278,1755037880215,-510.2,0.00050136,120]
[378826279,1755037880224,-833.04,0.00050136,120]
[378826280,1755037880234,-400.0,0.00050136,120]
[378826281,1755037880243,-400.0,0.00050136,120]
[378826282,1755037880253,-1121.69,0.00050136,120]
[378826283,1755037880262,-400.0,0.00050136,120]
[378826284,1755037880272,-1783.71,0.00050136,120]
[378826285,1755037880282,-510.74,0.00050136,120]
[378826286,1755037880291,-400.0,0.00050136,120]
[378826287,1755037880300,-1011.39,0.00050136,120]
[378826288,1755037880310,-1337.94,0.00050136,120]
[378826289,1755037880320,-902.77,0.00050136,120]
[378826290,1755037880330,-1871.09,0.00050136,120]
[378826291,1755037880339,-416.63,0.00050136,120]
[378826292,1755037880348,-1252.48,0.00050136,120]
[378826293,1755037880357,-400.0,0.00050136,120]
[378826294,1755037880367,-718.89,0.00050136,120]
[378826295,1755037880377,-1531.81,0.00050136,120]
[378826296,1755037880386,-400.0,0.00050136,120]
[378826297,1755037880396,-2252.52,0.00050136,120]
[378826298,1755037880406,-1591.82,0.00050136,120]
[378826299,1755037880415,-400.0,0.00050136,120]
[378826300,1755037880427,-727.33,0.00050136,120]
[378826301,1755037880436,-570.65,0.00050136,120]
[378826302,1755037880446,-1338.32,0.00050136,120]
[378826303,1755037880455,-824.5,0.00050136,120]
[378826304,1755037880464,-2936.59,0.00050136,120]
[378826305,1755037880474,-400.0,0.00050136,120]
[378826306,1755037880483,-570.91,0.00050136,120]
[378826307,1755037880493,-604.89,0.00050136,120]
[378826308,1755037880502,-805.68,0.00050136,120]
[378826309,1755037880511,-400.0,0.00050136,120]
[378826310,1755037880521,-1243.14,0.00050136,120]
[378826311,1755037880530,-400.0,0.00050136,120]
[378826312,1755037880540,-400.0,0.00050136,120]
[378826313,1755037880549,-1506.57,0.00050136,120]
[378826314,1755037880559,-635.16,0.00050136,120]
[378826315,1755037880568,-7103.12,0.00050136,120]
[378826316,1755037880578,-769.22,0.00050136,120]
[378826317,1755037880587,-915.56,0.00050136,120]
[378826318,1755037880597,-2108.99,0.00050136,120]
[378826319,1755037880606,-400.0,0.00050136,120]
[378826320,1755037880616,-400.0,0.00050136,120]
[378826321,1755037880625,-400.0,0.00050136,120]
[378826322,1755037880635,-1436.49,0.00050136,120]
[378826323,1755037880644,-1103.4,0.00050136,120]
[378826324,1755037880654,-955.29,0.00050136,120]
[378826325,1755037880663,-400.0,0.00050136,120]
[378826326,1755037880674,-400.0,0.00050136,120]
[378826327,1755037880683,-706.86,0.00050136,120]
[378826328,1755037880696,-400.0,0.00050136,120]
[378826329,1755037880705,-400.0,0.00050136,120]
[378826330,1755037880715,-868.64,0.00050136,120]
[378826331,1755037880724,-2835.4,0.00050136,120]
[378826332,1755037880735,-500.59,0.00050136,120]
[378826333,1755037880744,-1376.12,0.00050136,120]
[378826334,1755037880753,-454.85,0.00050136,120]
[378826335,1755037880763,-1047.68,0.00050136,120]
[378826336,1755037880772,-532.09,0.00050136,120]
[378826337,1755037880783,-400.0,0.00050136,120]
[378826338,1755037880792,-639.62,0.00050136,120]
[378826339,1755037880801,-477.25,0.00050136,120]
[378826340,1755037880810,-400.0,0.00050136,120]
[378826341,1755037880820,-450.3,0.00050136,120]
[378826342,1755037880830,-584.96,0.00050136,120]
[378826343,1755037880839,-400.0,0.00050136,120]
[378826344,1755037880849,-517.41,0.00050136,120]
[378826345,1755037880859,-1447.3,0.00050136,120]
[378826346,1755037880868,-400.0,0.00050136,120]
[378826347,1755037880878,-400.0,0.00050136,120]
[378826348,1755037880887,-1383.4,0.00050136,120]
[378826349,1755037880897,-400.0,0.00050136,120]
[378826350,1755037880907,-13078.55314792,0.00050136,120]
[378826351,1755037881013,-400.0,0.00049315,120]
[378826352,1755037881023,-418.14,0.00049315,120]
[378826353,1755037881032,-341.6599985,0.00050136,120]
[378826354,1755038565158,160.42,0.00021,3]
[378826355,1755038635725,154.65,0.00013699,2]
[378826358,1755038954147,-514.0,0.00025137,2]
[378826359,1755038954170,-150.0,0.00027397,2]
[378826360,1755038954191,-329.44016999,0.0002827,2]
[378826361,1755038954213,-269.1737718,0.00028767,2]
[378826362,1755038954235,-514.0,0.00033853,16]
[378826363,1755038954256,-156.0,0.00038,120]
[378826364,1755038954279,-156.0,0.00038,120]
[378826365,1755038954301,-154.65,0.00038356,2]
[378826366,1755038954324,-830.42683789,0.00039251,2]
[378826367,1755038954346,-457.93703655,0.00040011,2]
[378826368,1755038954367,-716.0,0.00040253,2]
[378826369,1755038954389,-156.0,0.000403,120]
[378826370,1755038954412,-1200.0,0.0004082,5]
[378826371,1755038954433,-1000.0,0.00040821,120]
[378826372,1755038954454,-1000.0,0.00040821,120]
[378826373,1755038954478,-169.8,0.00040821,120]
[378826374,1755038954500,-156.0,0.000409,120]
[378826375,1755038954520,-150.0,0.000414,2]
[378826376,1755038954542,-308.55037682,0.00042403,2]
[378826377,1755038954566,-26.50084992,0.00042568,31]
[378826378,1755038956130,-459.7963657,0.00039751,3]
[378826379,1755038966107,-1428.2036343,0.00039751,3]
[378826380,1755038966128,-1888.0,0.00040251,3]
[378826381,1755038966149,-3776.0,0.00041991,3]
[378826382,1755038966172,-487.49915008,0.00042568,31]
[378826383,1755038966194,-156.0,0.000427,120]
[378826384,1755038966215,-156.0,0.000438,120]
[378826385,1755038966235,-218.18,0.00044,120]
[378826386,1755038966256,-608.0,0.00044,120]
[378826387,1755038966276,-1331.471,0.00044,69]
[378826388,1755038966297,-178.017,0.00044,69]
[378826389,1755038966317,-10000.0,0.00044,7]
[378826390,1755038966338,-457.79793389,0.00044,7]
[378826391,1755038966359,-3968.95715558,0.00044379,2]
[378826392,1755038967102,-1189.70170798,0.0003975,3]
[378826393,1755038972097,-2112.53284442,0.00044379,2]
[378826394,1755038972118,-923.42,0.00044387,120]
[378826395,1755038972138,-500.0,0.00044387,120]
[378826396,1755038972158,-500.0,0.00044387,120]
[378826397,1755038972178,-500.0,0.00044387,120]
[378826398,1755038972198,-500.0,0.00044387,120]
[378826399,1755038972218,-495.89,0.0004439,2]
[378826400,1755038972238,-1089.73772081,0.00044399,2]
[378826401,1755038972258,-250.0,0.00044412,120]
[378826402,1755038972278,-162.21,0.00044413,120]
[378826403,1755038972297,-477.96775932,0.00044431,2]
[378826409,1755039031624,-22.03224068,0.00044431,2]
[378826410,1755039031634,-194.6,0.00044501,120]
[378826411,1755039031644,-156.2,0.00044516,2]
[378826412,1755039031653,-371.72,0.00044529,2]
[378826413,1755039031664,-200.0,0.00044545,2]
[378826414,1755039031673,-158.29154838,0.00044584,2]
[378826415,1755039031683,-1000.0,0.00044663,2]
[378826416,1755039031692,-23900.0,0.00044684,2]
[378826417,1755039031701,-2955.43,0.00044705,2]
[378826418,1755039031710,-2057.28,0.00044796,2]
[378826419,1755039031719,-224.67,0.00044855,2]
[378826420,1755039031729,-257.61,0.00044879,2]
[378826421,1755039031738,-608.0,0.00045,120]
[378826422,1755039031747,-156.0,0.00045,120]
[378826423,1755039031756,-500.0,0.00045,120]
[378826424,1755039031766,-500.0,0.00045,120]
[378826425,1755039031775,-500.0,0.00045,120]
[378826426,1755039031784,-500.0,0.00045,120]
[378826427,1755039031794,-150.0,0.0004568,2]
[378826428,1755039031804,-5000.0,0.00045707,120]
[378826429,1755039031813,-1139.0900071,0.00045869,2]
[378826430,1755039031822,-1500.42,0.00045879,2]
[378826431,1755039031832,-261.28656505,0.00045934,30]
[378826432,1755039031841,-608.0,0.00046,120]
[378826433,1755039031850,-12000.0,0.00046,120]
[378826434,1755039031859,-2209.77,0.00046205,2]
[378826435,1755039031869,-1140.79,0.00046219,2]
[378826436,1755039031878,-170.0,0.0004627,7]
[378826437,1755039031887,-576.37,0.00046351,120]
[378826438,1755039031896,-167.99,0.00046503,2]
[378826439,1755039031906,-156.0,0.000467,120]
[378826440,1755039031915,-1431.99,0.00046758,120]
[378826441,1755039031925,-174.98,0.000468,7]
[378826442,1755039031934,-608.0,0.00047,120]
[378826443,1755039031943,-500.0,0.00047122,60]
[378826444,1755039031953,-155.15,0.00047234,2]
[378826445,1755039031962,-155.15,0.00047328,2]
[378826446,1755039031971,-156.0,0.000474,120]
[378826447,1755039031981,-155.15,0.00047423,2]
[378826448,1755039031990,-155.15,0.00047517,2]
[378826449,1755039031999,-155.15,0.00047611,2]
[378826450,1755039032009,-155.15,0.00047706,2]
[378826451,1755039032021,-608.0,0.00048,120]
[378826452,1755039032031,-352.84765938,0.0004813,120]
[378826453,1755039032041,-168.0,0.00048132,2]
[378826454,1755039032050,-500.0,0.00048218,60]
[378826456,1755039032059,-162.93,0.0004834,2]
[378826458,1755039032070,-6.42725151,0.000486,2]
[378826460,1755039032081,-400.0,0.000486,2]
[378826465,1755039032132,-1699.83784849,0.000486,2]
[378826466,1755039032141,-150.21601472,0.0004869,28]
[378826467,1755039032151,-4164.81928455,0.000487,120]
[378826468,1755039032162,-835.18071545,0.000487,120]
[378826469,1755039032172,-300.0,0.000487,17]
[378826470,1755039032182,-1233.19496538,0.000487,20]
[378826471,1755039032191,-170.15466769,0.00048773,10]
[378826472,1755039032200,-170.49537733,0.00048773,10]
[378826473,1755039032209,-1900.97,0.0004878,2]
[378826474,1755039032219,-1900.97,0.0004878,2]
[378826475,1755039032228,-4018.63427555,0.00048789,120]
[378826476,1755039032239,-2099.28410178,0.00048789,120]
[378826477,1755039032249,-355.33269777,0.00048789,120]
[378826478,1755039032260,-164.91268226,0.00048789,120]
[378826479,1755039032269,-18906.9376371,0.0004879,4]
[378826481,1755039037573,-76745.03943307,0.0004879,4]
[378826482,1755039037627,-1976.62,0.0004879,4]
[378826483,1755039037638,-1016.20242027,0.0004879,4]
[378826484,1755039037678,-21980.84604593,0.0004879,4]
[378826485,1755039037845,-100273.82427363,0.0004879,4]
[378826486,1755039037855,-257427.414914,0.0004879,4]
[378826487,1755039037866,-500.0,0.00048799,120]
[378826488,1755039037876,-500.0,0.00048799,120]
[378826489,1755039037886,-499999.0,0.000488,120]
[378826490,1755039037895,-463.03396,0.000488,120]
[378826491,1755039037905,-65149.86279722,0.000488,120]
[378826492,1755039037919,-216822.909626,0.000488,120]
[378826493,1755039037930,-1144.44820268,0.000488,120]
[378826497,1755039039711,-11987.0,0.000488,120]
[378826498,1755039039723,-2380.2,0.000488,120]
[378826499,1755039039952,-10224.98108527,0.000488,120]
[378826500,1755039039964,-93215.6234781,0.000488,120]
[378826501,1755039039976,-5604.31,0.000488,120]
[378826503,1755039040083,-1236.3651175,0.000488,120]
[378826521,1755039042788,-295.99920458,0.000488,120]
[378826523,1755039042911,-1457.40859331,0.000488,120]
[378826526,1755039043046,-90479.89189534,0.000488,120]
[378826527,1755039043056,-700.0,0.000488,17]
[378826528,1755039043067,-259.96609982,0.000489,34]
[378826529,1755039043076,-1000.0,0.000489,17]
[378826530,1755039043086,-608.0,0.00049,120]
[378826531,1755039043095,-7355.06899753,0.00049205,4]
[378826532,1755039043107,-88888.0,0.00049215,120]
[378826533,1755039043117,-1099.999779,0.00049228,60]
[378826534,1755039043128,-500.0,0.00049304,120]
[378826535,1755039043138,-500.0,0.00049314,60]
[378826536,1755039043147,-500.0,0.00049314,120]
[378826537,1755039043157,-500.0,0.00049314,120]
[378826538,1755039043167,-500.0,0.00049314,15]
[378826539,1755039043176,-999.0,0.00049314,120]
[378826540,1755039043185,-15071.33329079,0.00049314,2]
[378826541,1755039043195,-404.40793812,0.00049315,120]
[378826542,1755039043204,-400.0,0.00049315,2]
[378826543,1755039043214,-400.0,0.00049315,120]
[378826544,1755039043224,-400.0,0.00049315,120]
[378826545,1755039043234,-400.0,0.00049315,120]
[378826546,1755039043244,-400.0,0.00049315,120]
[378826547,1755039043253,-400.0,0.00049315,2]
[378826548,1755039043264,-500.0,0.00049315,120]
[378826549,1755039043273,-400.0,0.00049315,120]
[378826550,1755039043283,-400.0,0.00049315,120]
[378826551,1755039043293,-400.0,0.00049315,120]
[378826552,1755039043302,-500.0,0.00049315,120]
[378826553,1755039043311,-400.0,0.00049315,120]
[378826554,1755039043322,-400.0,0.00049315,120]
[378826555,1755039043331,-400.0,0.00049315,120]
[378826556,1755039043340,-400.0,0.00049315,120]
[378826557,1755039043350,-400.0,0.00049315,120]
[378826559,1755039043359,-400.0,0.00049315,120]
[378826561,1755039043369,-400.0,0.00049315,120]
[378826563,1755039043379,-400.0,0.00049315,120]
[378826564,1755039043388,-400.0,0.00049315,120]
[378826565,1755039043398,-400.0,0.00049315,120]
[378826567,1755039043407,-400.0,0.00049315,120]
[378826568,1755039043417,-400.0,0.00049315,120]
[378826569,1755039043426,-500.0,0.00049315,120]
[378826570,1755039043435,-500.0,0.00049315,120]
[378826571,1755039043444,-400.0,0.00049315,120]
[378826572,1755039043454,-500.0,0.00049315,120]
[378826573,1755039043463,-400.0,0.00049315,120]
[378826574,1755039043472,-400.0,0.00049315,120]
[378826575,1755039043482,-413.51,0.00049315,120]
[378826576,1755039043491,-400.0,0.00049315,120]
[378826577,1755039043500,-367.39254392,0.00049315,120]
[378826578,1755039043510,-400.0,0.00049315,120]
[378826579,1755039043519,-400.0,0.00049315,120]
[378826580,1755039043528,-400.0,0.00049315,120]
[378826581,1755039043538,-400.0,0.00049315,120]
[378826582,1755039043547,-400.0,0.00049315,120]
[378826583,1755039043556,-400.0,0.00049315,120]
[378826584,1755039043565,-400.0,0.00049315,120]
[378826585,1755039043575,-400.0,0.00049315,120]
[378826586,1755039043584,-402.47244746,0.00049315,120]
[378826587,1755039043594,-500.0,0.00049315,2]
[378826588,1755039043603,-500.0,0.00049315,2]
[378826589,1755039043612,-400.0,0.00049315,30]
[378826590,1755039043622,-500.0,0.00049315,2]
[378826591,1755039043632,-400.0,0.00049315,120]
[378826592,1755039043642,-524.45314218,0.00049315,2]
[378826593,1755039043651,-845.94,0.00049315,120]
[378826594,1755039043661,-400.0,0.00049315,120]
[378826595,1755039043670,-400.0,0.00049315,120]
[378826596,1755039043680,-405.53255538,0.00049315,120]
[378826597,1755039043689,-400.0,0.00049315,120]
[378826598,1755039043699,-400.0,0.00049315,120]
[378826599,1755039043708,-400.0,0.00049315,120]
[378826600,1755039043718,-400.0,0.00049315,120]
[378826601,1755039043728,-400.0,0.00049315,120]
[378826602,1755039043737,-404.18297749,0.00049315,120]
[378826603,1755039043746,-400.0,0.00049315,120]
[378826604,1755039043756,-400.0,0.00049315,120]
[378826605,1755039043765,-400.0,0.00049315,120]
[378826606,1755039043775,-400.0,0.00049315,120]
[378826607,1755039043784,-400.0,0.00049315,120]
[378826608,1755039043793,-400.0,0.00049315,120]
[378826609,1755039043803,-400.0,0.00049315,120]
[378826610,1755039043813,-400.0,0.00049315,120]
[378826611,1755039043822,-400.0,0.00049315,120]
[378826612,1755039043832,-400.0,0.00049315,120]
[378826613,1755039043842,-400.0,0.00049315,120]
[378826614,1755039043852,-400.0,0.00049315,120]
[378826615,1755039043862,-400.0,0.00049315,120]
[378826616,1755039043872,-400.0,0.00049315,120]
[378826617,1755039043883,-400.0,0.00049315,120]
[378826618,1755039043893,-400.0,0.00049315,120]
[378826619,1755039043902,-223.15876995,0.00049315,120]
[378826620,1755039043912,-400.0,0.00049315,120]
[378826621,1755039043921,-462.34,0.00049315,120]
[378826622,1755039043931,-400.0,0.00049315,120]
[378826623,1755039043940,-400.0,0.00049315,120]
[378826624,1755039043950,-400.0,0.00049315,120]
[378826625,1755039043959,-400.0,0.00049315,120]
[378826626,1755039043968,-400.0,0.00049315,120]
[378826627,1755039043978,-400.0,0.00049315,120]
[378826628,1755039043987,-400.0,0.00049315,120]
[378826629,1755039043997,-403.65979308,0.00049315,120]
[378826630,1755039044006,-400.0,0.00049315,120]
[378826631,1755039044016,-400.0,0.00049315,120]
[378826632,1755039044029,-400.0,0.00049315,120]
[378826633,1755039044038,-400.0,0.00049315,120]
[378826634,1755039044048,-400.0,0.00049315,14]
[378826635,1755039044058,-400.0,0.00049315,120]
[378826636,1755039044068,-400.0,0.00049315,120]
[378826637,1755039044077,-400.0,0.00049315,120]
[378826638,1755039044087,-400.0,0.00049315,120]
[378826639,1755039044097,-440.4113403,0.00049315,120]
[378826640,1755039044108,-400.0,0.00049315,120]
[378826641,1755039044117,-400.0,0.00049315,120]
[378826642,1755039044126,-400.0,0.00049315,120]
[378826643,1755039044135,-452.76,0.00049315,120]
[378826644,1755039044145,-400.0,0.00049315,120]
[378826645,1755039044154,-400.0,0.00049315,120]
[378826646,1755039044163,-400.0,0.00049315,120]
[378826647,1755039044173,-400.0,0.00049315,60]
[378826648,1755039044182,-400.0,0.00049315,120]
[378826649,1755039044191,-401.07521966,0.00049315,120]
[378826650,1755039044200,-400.0,0.00049315,120]
[378826651,1755039044210,-400.0,0.00049315,120]
[378826652,1755039044219,-400.0,0.00049315,120]
[378826653,1755039044229,-400.0,0.00049315,120]
[378826654,1755039044238,-400.0,0.00049315,120]
[378826655,1755039044247,-400.0,0.00049315,120]
[378826656,1755039044256,-400.0,0.00049315,120]
[378826657,1755039044266,-400.0,0.00049315,120]
[378826658,1755039044275,-408.85,0.00049315,120]
[378826659,1755039044285,-400.0,0.00049315,120]
[378826660,1755039044294,-400.0,0.00049315,120]
[378826661,1755039044304,-400.0,0.00049315,120]
[378826662,1755039044314,-400.0,0.00049315,120]
[378826663,1755039044323,-400.0,0.00049315,120]
[378826664,1755039044332,-400.0,0.00049315,120]
[378826665,1755039044342,-400.0,0.00049315,120]
[378826666,1755039044351,-400.0,0.00049315,120]
[378826667,1755039044361,-400.0,0.00049315,120]
[378826668,1755039044370,-400.0,0.00049315,30]
[378826669,1755039044380,-400.0,0.00049315,120]
[378826670,1755039044389,-400.0,0.00049315,120]